{"text_format":"1","workbook":"xlsx","n_sheets":1,"sheets":["LIVRE DE PAIE"],"not_rendered":{"charts":0,"images":0,"macros":1,"external_links":0,"defined_names":4,"comments":0,"pivot_tables":0},"unopened":[],"bounds":{"document_bytes":16777216,"sheet_cells":100000,"rows_first":2000,"rows_last":500,"rows_between":2000,"halvings":0,"cell_chars":16384,"cell_head_chars":4096},"cells_cut":0,"cells_raw":0,"read":"whole","date_system":"1900"}

{"sheet":"LIVRE DE PAIE","index":0,"n_rows":84,"n_cols":15,"rows_kept":84,"cut":false,"hidden":false,"merged":[]}
[]
[]
[]
["Date de Paie","Période de Paie","Matricule",null,"valeur à rechercher",null,null,null,null,null,null,null,"Matricule","mois","ANNEE"]
["2019-09-21","2019-02-01","001",{"$f":"IF(B5=\"\",\"\",\"Trim\"&TEXT(1+INT((MONTH(B5)-1)/3),\"#\")&\"-\"&TEXT(YEAR(B5),\"####\"))","v":"Trim1-2019"},{"$f":"C5&TEXT(B5,\"mmmm\")&YEAR(B5)","v":"001février2019"},null,null,null,null,null,null,null,"001","janvier",2019]
["2019-09-21","2019-07-01","002","Trim3-2019","002juillet2019",null,null,null,null,null,null,null,"002","février",2020]
["2019-09-22","2019-03-01","003","Trim1-2019","003mars2019",null,null,null,null,null,null,null,"003","mars",2021]
["2019-09-22","2019-01-01","004","Trim1-2019","004janvier2019",null,null,null,null,null,null,null,"004","avril",2022]
["2019-09-22","2019-07-01","005","Trim3-2019","005juillet2019",null,null,null,null,null,null,null,"005","mai",2023]
["2019-09-22","2019-04-01","006","Trim2-2019","006avril2019",null,null,null,null,null,null,null,"006","juin",2024]
["2019-09-22","2019-07-01","007","Trim3-2019","007juillet2019",null,null,null,null,null,null,null,"007","juillet",2025]
["2019-09-22","2019-07-01","008","Trim3-2019","008juillet2019",null,null,null,null,null,null,null,"008","août",2026]
["2019-09-22","2019-02-01","009","Trim1-2019","009février2019",null,null,null,null,null,null,null,"009","septembre",2027]
["2019-09-22","2019-02-01","010","Trim1-2019","010février2019",null,null,null,null,null,null,null,"010","octobre",2028]
["2019-09-22","2019-07-01","012","Trim3-2019","012juillet2019",null,null,null,null,null,null,null,"011","novembre",2029]
["2019-09-22","2019-06-01","013","Trim2-2019","013juin2019",null,null,null,null,null,null,null,"012","décembre",2030]
["2019-09-22","2019-07-01","014","Trim3-2019","014juillet2019",null,null,null,null,null,null,null,"013"]
["2019-09-22","2019-01-01","011","Trim1-2019","011janvier2019",null,null,null,null,null,null,null,"014"]
["2019-09-22","2019-07-01","015","Trim3-2019","015juillet2019",null,null,null,null,null,null,null,"015"]
["2019-09-22","2019-07-01","016","Trim3-2019","016juillet2019",null,null,null,null,null,null,null,"016"]
["2019-09-22","2019-02-01","017","Trim1-2019","017février2019",null,null,null,null,null,null,null,"017"]
["2019-09-22","2019-07-01","018","Trim3-2019","018juillet2019",null,null,null,null,null,null,null,"018"]
[null,null,null,"","janvier1900",null,null,null,null,null,null,null,"019"]
[null,null,null,"","janvier1900",null,null,null,null,null,null,null,"020"]
[null,null,null,"","janvier1900",null,null,null,null,null,null,null,"021"]
[null,null,null,"","janvier1900",null,null,null,null,null,null,null,"022"]
[null,null,null,"","janvier1900",null,null,null,null,null,null,null,"023"]
[null,null,null,"","janvier1900",null,null,null,null,null,null,null,"024"]
[null,null,null,"","janvier1900",null,null,null,null,null,null,null,"025"]
[null,null,null,"","janvier1900",null,null,null,null,null,null,null,"026"]
[null,null,null,"","janvier1900",null,null,null,null,null,null,null,"027"]
[null,null,null,"","janvier1900",null,null,null,null,null,null,null,"028"]
[null,null,null,"","janvier1900",null,null,null,null,null,null,null,"029"]
[null,null,null,"","janvier1900",null,null,null,null,null,null,null,"030"]
[null,null,null,"","janvier1900",null,null,null,null,null,null,null,"031"]
[null,null,null,"","janvier1900",null,null,null,null,null,null,null,"032"]
[null,null,null,"","janvier1900",null,null,null,null,null,null,null,"033"]
[null,null,null,"","janvier1900",null,null,null,null,null,null,null,"034"]
[null,null,null,"","janvier1900",null,null,null,null,null,null,null,"035"]
[null,null,null,"","janvier1900",null,null,null,null,null,null,null,"036"]
[null,null,null,"","janvier1900",null,null,null,null,null,null,null,"037"]
[null,null,null,"","janvier1900",null,null,null,null,null,null,null,"038"]
[null,null,null,"",null,null,null,null,null,null,null,null,"039"]
[null,null,null,"",null,null,null,null,null,null,null,null,"040"]
[null,null,null,"",null,null,null,null,null,null,null,null,"041"]
[null,null,null,null,null,null,null,null,null,null,null,null,"042"]
[null,null,null,null,null,null,null,null,null,null,null,null,"043"]
[null,null,null,null,null,null,null,null,null,null,null,null,"044"]
[null,null,null,null,null,null,null,null,null,null,null,null,"045"]
[null,null,null,null,null,null,null,null,null,null,null,null,"046"]
[null,null,null,null,null,null,null,null,null,null,null,null,"047"]
[null,null,null,null,null,null,null,null,null,null,null,null,"048"]
[null,null,null,null,null,null,null,null,null,null,null,null,"049"]
[null,null,null,null,null,null,null,null,null,null,null,null,"050"]
[null,null,null,null,null,null,null,null,null,null,null,null,"051"]
[null,null,null,null,null,null,null,null,null,null,null,null,"052"]
[null,null,null,null,null,null,null,null,null,null,null,null,"053"]
[null,null,null,null,null,null,null,null,null,null,null,null,"054"]
[null,null,null,null,null,null,null,null,null,null,null,null,"055"]
[null,null,null,null,null,null,null,null,null,null,null,null,"056"]
[null,null,null,null,null,null,null,null,null,null,null,null,"057"]
[null,null,null,null,null,null,null,null,null,null,null,null,"058"]
[null,null,null,null,null,null,null,null,null,null,null,null,"059"]
[null,null,null,null,null,null,null,null,null,null,null,null,"060"]
[null,null,null,null,null,null,null,null,null,null,null,null,"061"]
[null,null,null,null,null,null,null,null,null,null,null,null,"062"]
[null,null,null,null,null,null,null,null,null,null,null,null,"063"]
[null,null,null,null,null,null,null,null,null,null,null,null,"064"]
[null,null,null,null,null,null,null,null,null,null,null,null,"065"]
[null,null,null,null,null,null,null,null,null,null,null,null,"066"]
[null,null,null,null,null,null,null,null,null,null,null,null,"067"]
[null,null,null,null,null,null,null,null,null,null,null,null,"068"]
[null,null,null,null,null,null,null,null,null,null,null,null,"069"]
[null,null,null,null,null,null,null,null,null,null,null,null,"070"]
[null,null,null,null,null,null,null,null,null,null,null,null,"071"]
[null,null,null,null,null,null,null,null,null,null,null,null,"072"]
[null,null,null,null,null,null,null,null,null,null,null,null,"073"]
[null,null,null,null,null,null,null,null,null,null,null,null,"074"]
[null,null,null,null,null,null,null,null,null,null,null,null,"075"]
[null,null,null,null,null,null,null,null,null,null,null,null,"076"]
[null,null,null,null,null,null,null,null,null,null,null,null,"077"]
[null,null,null,null,null,null,null,null,null,null,null,null,"078"]
[null,null,null,null,null,null,null,null,null,null,null,null,"079"]
[null,null,null,null,null,null,null,null,null,null,null,null,"080"]